bitfinex-derivatives/quotes_BTCF0:USTF0_20240929
["timestamp","ask_amount","ask_price","bid_price","bid_amount"]
[1727628748470,0.0035,65813.0,65809.0,0.85795569]
[1727628748674,0.0135,65813.0,65812.0,0.155955]
[1727628748862,0.116049,65817.0,65814.0,0.075952]
[1727628749058,0.0104,65815.0,65814.0,0.33263467]
[1727628749272,0.0104,65815.0,65814.0,0.60184867]
[1727628749661,0.0104,65815.0,65814.0,0.43875905]
[1727628750068,0.090351,65815.0,65814.0,0.33263467]
[1727628750273,0.096351,65815.0,65814.0,0.33263467]
[1727628750567,0.0204,65815.0,65814.0,0.33263467]
[1727628750760,0.0144,65815.0,65814.0,0.33463467]
[1727628751166,0.0144,65815.0,65814.0,0.6039267]
[1727628751970,0.0104,65815.0,65814.0,0.49780232]
[1727628752363,0.0004,65815.0,65814.0,0.57780232]
[1727628753379,0.0004,65815.0,65814.0,0.41463467]
[1727628753968,0.0104,65815.0,65814.0,0.41263467]
[1727628754180,0.0004,65815.0,65814.0,0.41463467]
[1727628754675,0.0104,65815.0,65814.0,0.41463467]
[1727628754884,0.0104,65815.0,65814.0,0.27370675]
[1727628755067,0.0104,65815.0,65814.0,0.41405341]
[1727628755883,0.0104,65815.0,65814.0,0.44090042]
[1727628756175,0.02,65815.0,65814.0,0.44090042]
[1727628756569,0.0039,65818.0,65817.0,0.075949]
[1727628756775,0.0004,65818.0,65817.0,0.49458202]
[1727628757171,0.0804,65818.0,65817.0,0.49458202]
[1727628757373,0.0804,65818.0,65817.0,0.60062183]
[1727628757687,0.0904,65818.0,65817.0,0.60062183]
[1727628758677,0.0914,65818.0,65817.0,0.60062183]
[1727628759270,0.0904,65818.0,65817.0,0.60062183]
[1727628759470,0.0904,65818.0,65817.0,0.33205041]
[1727628763174,0.0904,65818.0,65817.0,0.075949]
[1727628764279,0.0104,65818.0,65817.0,0.075949]
[1727628764774,0.0104,65818.0,65817.0,0.436749]
[1727628771279,0.0104,65818.0,65817.0,0.69240564]
[1727628771980,0.0004,65821.0,65817.0,0.70645664]
[1727628772283,0.0004,65821.0,65820.0,0.155946]
[1727628772582,0.0004,65821.0,65820.0,0.41160264]
[1727628773482,0.0839,65826.0,65820.0,0.41160264]
[1727628773684,0.0004,65826.0,65825.0,0.07594]
[1727628773882,0.0004,65826.0,65825.0,0.33159664]
[1727628774185,0.0804,65826.0,65825.0,0.33159664]
[1727628775076,0.0894,65826.0,65825.0,0.33159664]
[1727628776085,0.0964,65826.0,65825.0,0.33159664]
[1727628776389,0.0964,65826.0,65825.0,0.43763143]
[1727628776683,0.1364,65826.0,65825.0,0.43763143]
[1727628777079,0.0964,65826.0,65825.0,0.43763143]
[1727628777482,0.0964,65826.0,65825.0,0.59923396]
[1727628777882,0.0964,65826.0,65825.0,0.49319917]
[1727628778188,0.13359176,65826.0,65825.0,0.07594]
[1727628778892,0.13359161,65826.0,65825.0,0.07594]
[1727628779287,0.18359161,65826.0,65825.0,0.07594]
[1727628779787,0.1464,65826.0,65825.0,0.07594]
[1727628780196,0.1464,65826.0,65825.0,0.10296726]
[1727628781597,0.0164,65826.0,65825.0,0.10296726]
[1727628781901,0.0964,65826.0,65825.0,0.10296726]
[1727628782992,0.1664,65826.0,65825.0,0.10296726]
[1727628783197,0.0864,65826.0,65825.0,0.10296726]
[1727628783401,0.1664,65826.0,65825.0,0.10296726]
[1727628784791,0.20359186,65826.0,65825.0,0.10296726]
[1727628786402,0.1664,65826.0,65825.0,0.51938736]
[1727628787288,0.1464,65826.0,65825.0,0.51938736]
[1727628787790,0.1464,65826.0,65825.0,0.62547586]
[1727628788289,0.1464,65826.0,65825.0,0.62579796]
[1727628788495,0.1164,65826.0,65825.0,0.62579796]
[1727628788693,0.09,65826.0,65825.0,0.62579796]
[1727628789297,0.01,65826.0,65825.0,0.62579796]
[1727628789491,0.09,65826.0,65825.0,0.62579796]
[1727628789895,0.09,65826.0,65825.0,0.3579928]
[1727628790501,0.01,65826.0,65825.0,0.3579928]
[1727628790799,0.09,65826.0,65825.0,0.3579928]
[1727628793395,0.17381382,65826.0,65822.0,0.075943]
[1727628793596,0.156342,65823.0,65822.0,0.075943]
[1727628793799,0.075945,65821.0,65820.0,0.0035]
[1727628793999,0.075946,65820.0,65819.0,0.075946]
[1727628794213,0.35015982,65820.0,65819.0,0.075946]
[1727628794501,0.27421382,65820.0,65819.0,0.075946]
[1727628795405,0.27521382,65820.0,65819.0,0.075946]
[1727628795992,0.35115982,65820.0,65819.0,0.075946]
[1727628797292,0.48776775,65820.0,65819.0,0.075946]
[1727628797603,0.075948,65818.0,65817.0,0.436749]
[1727628797798,0.18016594,65818.0,65817.0,0.075949]
[1727628799302,0.18016594,65818.0,65817.0,0.077949]
[1727628800003,0.24080697,65818.0,65817.0,0.078949]
[1727628800403,0.05759568,65818.0,65817.0,0.078949]
[1727628801304,0.0004,65818.0,65817.0,0.49531061]
[1727628801507,0.02,65818.0,65817.0,0.49531061]
[1727628801911,0.04314457,65820.0,65817.0,0.49531061]
[1727628802104,0.06314457,65820.0,65818.0,0.59844057]
[1727628802402,0.06314457,65820.0,65819.0,0.25491186]
[1727628802800,0.06314457,65820.0,65819.0,0.33085886]
[1727628804597,0.06414457,65820.0,65819.0,0.33085886]
[1727628804998,0.06414457,65820.0,65819.0,0.25491186]
[1727628805607,0.096946,65820.0,65819.0,0.25398636]
[1727628806399,0.096946,65820.0,65819.0,0.11576099]
[1727628807211,0.457746,65820.0,65819.0,0.11576099]
[1727628807417,0.457746,65820.0,65819.0,0.20672004]
[1727628807805,0.457746,65820.0,65819.0,0.20672016]
[1727628808309,0.457746,65820.0,65819.0,0.11576099]
[1727628808508,0.075949,65817.0,65816.0,0.07595]
[1727628808711,0.15354871,65817.0,65816.0,0.07595]
[1727628809615,0.15354871,65817.0,65816.0,0.07895]
[1727628810214,0.116349,65817.0,65816.0,0.07895]
[1727628810607,0.15354761,65817.0,65816.0,0.07895]
[1727628811621,0.15354761,65817.0,65816.0,0.08095]
[1727628812417,0.51434761,65817.0,65816.0,0.08095]
[1727628815220,0.51434882,65817.0,65816.0,0.08095]
[1727628816617,0.477149,65817.0,65816.0,0.33506437]
[1727628820125,0.477149,65817.0,65816.0,0.33513758]
[1727628821518,0.4012,65817.0,65816.0,0.33513758]
[1727628821713,0.116349,65817.0,65816.0,0.33513758]
[1727628822225,0.477149,65817.0,65816.0,0.33513758]
[1727628825921,0.116349,65817.0,65816.0,0.33513758]
[1727628826125,0.477149,65817.0,65816.0,0.33513758]
[1727628830030,0.477149,65817.0,65816.0,0.33484119]
[1727628831527,0.56097609,65817.0,65816.0,0.08095]
[1727628832129,0.71290076,65817.0,65816.0,0.08095]
[1727628834826,0.35209724,65817.0,65816.0,0.08095]
[1727628837034,0.27614824,65817.0,65816.0,0.08095]
[1727628838438,0.15192467,65817.0,65816.0,0.49494447]
[1727628838636,0.16192467,65817.0,65816.0,0.49494447]
[1727628839737,0.16192467,65817.0,65816.0,0.49383335]
[1727628844534,0.24192467,65817.0,65816.0,0.49383335]
[1727628846539,0.09,65817.0,65816.0,0.49383335]
[1727628848543,0.09,65817.0,65816.0,0.4938823]
[1727628853031,0.09,65817.0,65816.0,0.6093693]
[1727628853331,0.09,65817.0,65816.0,0.49389235]
[1727628853528,0.12719817,65817.0,65816.0,0.08095]
[1727628854647,0.04719817,65817.0,65816.0,0.08095]
[1727628854841,0.12719817,65817.0,65816.0,0.08095]
[1727628856143,0.21157482,65817.0,65816.0,0.08095]
[1727628856337,0.24877299,65817.0,65816.0,0.08095]
[1727628856741,0.12719817,65817.0,65816.0,0.08095]
[1727628857043,0.27232936,65817.0,65816.0,0.08095]
[1727628857439,0.165949,65817.0,65816.0,0.08095]
[1727628858640,0.165949,65817.0,65816.0,0.005]
[1727628859533,0.20314982,65817.0,65816.0,0.005]
[1727628860149,0.56394982,65817.0,65816.0,0.005]
[1727628860343,0.56394982,65817.0,65816.0,0.08095]
[1727628861447,0.526749,65817.0,65816.0,0.33444246]
[1727628861945,0.165949,65817.0,65816.0,0.33444246]
[1727628862136,0.526749,65817.0,65816.0,0.33444246]
[1727628862752,0.526749,65817.0,65816.0,0.33443055]
[1727628863152,0.165949,65817.0,65816.0,0.33443055]
[1727628863447,0.526749,65817.0,65816.0,0.33443055]
[1727628864754,0.446749,65817.0,65816.0,0.33443055]
[1727628864944,0.526749,65817.0,65816.0,0.33443055]
[1727628866453,0.165949,65817.0,65816.0,0.33443055]
[1727628866645,0.526749,65817.0,65816.0,0.33443055]
[1727628867552,0.4508,65817.0,65816.0,0.33440417]
[1727628868458,0.3608,65817.0,65816.0,0.33440417]
[1727628868657,0.51799923,65817.0,65816.0,0.08095]
[1727628870661,0.15719923,65817.0,65816.0,0.08095]
[1727628872458,0.15719874,65817.0,65816.0,0.08095]
[1727628873359,0.19871974,65817.0,65816.0,0.08095]
[1727628873653,0.19871974,65817.0,65816.0,0.09095]
[1727628874160,0.07719874,65817.0,65816.0,0.09095]
[1727628874867,0.07719874,65817.0,65816.0,0.08095]
[1727628876047,0.16151697,65817.0,65816.0,0.08095]
[1727628876252,0.07719874,65817.0,65816.0,0.08095]
[1727628876664,0.07719874,65817.0,65816.0,0.51976635]
[1727628876665,0.02,65817.0,65816.0,0.51976635]
[1727628876960,0.02,65817.0,65816.0,0.59571635]
[1727628877151,0.02,65817.0,65816.0,0.59571448]
[1727628877862,0.02,65817.0,65816.0,0.48943697]
[1727628881058,0.02,65817.0,65816.0,0.49943697]
[1727628881260,0.02,65817.0,65816.0,0.48943697]
[1727628882252,0.02,65817.0,65816.0,0.48724876]
[1727628883568,0.05719686,65817.0,65816.0,0.08095]
[1727628887163,0.05719805,65817.0,65816.0,0.08095]
[1727628888761,0.02,65817.0,65816.0,0.08095]
[1727628891560,0.13794496,65818.0,65816.0,0.11867927]
[1727628891761,0.15794496,65818.0,65817.0,0.28067707]
[1727628892462,0.15794496,65818.0,65817.0,0.18962827]
[1727628892666,0.15794496,65818.0,65817.0,0.2806797]
[1727628893172,0.15794496,65818.0,65817.0,0.2816797]
[1727628893559,0.15794496,65818.0,65817.0,0.28368265]
[1727628894168,0.15794496,65818.0,65817.0,0.19262827]
[1727628894469,0.15794496,65818.0,65817.0,0.28368631]
[1727628894654,0.15794496,65818.0,65817.0,0.19262827]
[1727628895864,0.08199696,65818.0,65817.0,0.32779521]
[1727628896967,0.08199696,65818.0,65817.0,0.32762872]
[1727628898573,0.07541758,65818.0,65817.0,0.078949]
[1727628898769,0.0287919,65818.0,65817.0,0.078949]
[1727628898977,0.11261599,65818.0,65817.0,0.078949]
[1727628899973,0.27977057,65818.0,65817.0,0.078949]
[1727628900864,0.24257302,65818.0,65817.0,0.078949]
[1727628901179,0.27977212,65818.0,65817.0,0.078949]
[1727628901763,0.27977212,65818.0,65813.0,0.075953]
[1727628902066,0.08,65814.0,65813.0,0.075953]
[1727628902267,0.25382564,65814.0,65813.0,0.075953]
[1727628903162,0.25382564,65814.0,65813.0,0.083953]
[1727628904472,0.61462564,65814.0,65813.0,0.083953]
[1727628904673,0.61462564,65814.0,65813.0,0.080953]
[1727628904966,0.61462564,65814.0,65813.0,0.081953]
[1727628904967,0.61562564,65814.0,65813.0,0.081953]
[1727628905175,0.61563189,65814.0,65813.0,0.081953]
[1727628905369,0.69158489,65814.0,65813.0,0.081953]
[1727628906572,0.607753,65814.0,65813.0,0.33028327]
[1727628908674,0.607753,65814.0,65813.0,0.33027383]
[1727628911674,0.246953,65814.0,65813.0,0.33027383]
[1727628911880,0.607753,65814.0,65813.0,0.33027383]
[1727628913872,0.246953,65814.0,65813.0,0.33027383]
[1727628914073,0.607753,65814.0,65813.0,0.33027383]
[1727628914980,0.246953,65814.0,65813.0,0.33027383]
[1727628915288,0.607753,65814.0,65813.0,0.33027383]
[1727628917284,0.246953,65814.0,65813.0,0.33027383]
[1727628917477,0.607753,65814.0,65813.0,0.33027383]
[1727628918679,0.246953,65814.0,65813.0,0.33027383]
[1727628918880,0.607753,65814.0,65813.0,0.33027383]
[1727628919875,0.607753,65814.0,65813.0,0.33018102]
[1727628921683,0.69158488,65814.0,65813.0,0.081953]
[1727628921883,0.33078488,65814.0,65813.0,0.081953]
[1727628922068,0.69158488,65814.0,65813.0,0.081953]
[1727628923270,0.82827229,65814.0,65813.0,0.081953]
[1727628926377,0.64495487,65814.0,65813.0,0.081953]
[1727628927784,0.28415487,65814.0,65813.0,0.081953]
[1727628928186,0.64495487,65814.0,65813.0,0.081953]
[1727628928889,0.607753,65814.0,65813.0,0.3304283]
[1727628929883,0.246953,65814.0,65813.0,0.3304283]
[1727628930082,0.607753,65814.0,65813.0,0.3304283]
[1727628930787,0.55454299,65814.0,65813.0,0.3304283]
[1727628934084,0.19374299,65814.0,65813.0,0.3304283]
[1727628934286,0.55454299,65814.0,65813.0,0.3304283]
[1727628934793,0.19374299,65814.0,65813.0,0.32973757]
[1727628934984,0.55454299,65814.0,65813.0,0.32973757]
[1727628935293,0.19374299,65814.0,65813.0,0.32973757]
[1727628935689,0.55454299,65814.0,65813.0,0.32973757]
[1727628935894,0.74265591,65814.0,65813.0,0.081953]
[1727628936095,0.62108994,65814.0,65813.0,0.081953]
[1727628936885,0.26028994,65814.0,65813.0,0.081953]
[1727628937091,0.62108994,65814.0,65813.0,0.081953]
[1727628939896,0.62108994,65814.0,65813.0,0.006]
[1727628942500,0.30692016,65814.0,65813.0,0.006]
[1727628942689,0.66772016,65814.0,65813.0,0.006]
[1727628943794,0.51653558,65814.0,65813.0,0.25366822]
[1727628944005,0.59653558,65814.0,65813.0,0.25366822]
[1727628944386,0.59653558,65814.0,65813.0,0.32962222]
[1727628944591,0.59653558,65814.0,65813.0,0.32962055]
[1727628946202,0.23573558,65814.0,65813.0,0.32962055]
[1727628946503,0.59653558,65814.0,65813.0,0.32962055]
[1727628948294,0.59653558,65814.0,65813.0,0.25366655]
[1727628950794,0.59653558,65814.0,65813.0,0.006]
[1727628950795,0.7097158,65814.0,65813.0,0.006]
[1727628954197,0.7097168,65814.0,65813.0,0.006]
[1727628958908,0.59653558,65814.0,65813.0,0.20974015]
[1727628959099,0.23573558,65814.0,65813.0,0.20974015]
[1727628959305,0.59653558,65814.0,65813.0,0.20974015]
[1727628959506,0.44058258,65814.0,65813.0,0.28569415]
[1727628959719,0.52058258,65814.0,65813.0,0.20974015]
[1727628959902,0.52058258,65814.0,65813.0,0.11858612]
[1727628960107,0.52058258,65814.0,65813.0,0.28559207]
[1727628960406,0.52058258,65814.0,65813.0,0.28559206]
[1727628960808,0.52058258,65814.0,65813.0,0.19454012]
[1727628965921,0.52058258,65814.0,65813.0,0.14265459]
[1727628968522,0.52058258,65814.0,65813.0,0.081954]
[1727628971120,0.52058258,65814.0,65813.0,0.006]
[1727628971327,0.59653558,65814.0,65813.0,0.006]
[1727628973928,0.70972231,65814.0,65813.0,0.00434983]
[1727628976829,1.07052231,65814.0,65813.0,0.00434983]
[1727628977028,1.12501381,65814.0,65813.0,0.00434983]
[1727628978834,0.40341381,65814.0,65813.0,0.00434983]
[1727628979039,1.07052231,65814.0,65813.0,0.00434983]
[1727628979334,1.12501381,65814.0,65813.0,0.00434983]
[1727628979634,1.3223488,65814.0,65813.0,0.00434983]
[1727628980129,1.04906081,65814.0,65813.0,0.08030383]
[1727628980433,1.2463958,65814.0,65813.0,0.08030383]
[1727628980823,1.13320907,65814.0,65813.0,0.2842586]
[1727628981028,1.07871757,65814.0,65813.0,0.2842586]
[1727628981431,1.07871757,65814.0,65813.0,0.2083046]
[1727628981822,1.07871757,65814.0,65813.0,0.208298]
[1727628983533,1.15467057,65814.0,65813.0,0.11724711]
[1727628986734,1.15467057,65814.0,65813.0,0.11725723]
[1727628988939,1.15467057,65814.0,65811.0,0.075956]
[1727628988940,1.08700399,65814.0,65811.0,0.075956]
[1727628989140,0.16767896,65813.0,65811.0,0.075956]
[1727628989444,0.11318722,65812.0,65811.0,0.075956]
[1727628989747,0.21318722,65812.0,65811.0,0.075956]
[1727628990246,0.21318722,65812.0,65811.0,0.083956]
[1727628990543,0.57398722,65812.0,65811.0,0.083956]
[1727628990741,0.62847896,65812.0,65811.0,0.083956]
[1727628990943,0.70947896,65812.0,65811.0,0.083956]
[1727628991842,0.71047896,65812.0,65811.0,0.082956]
[1727628993939,0.34967896,65812.0,65811.0,0.082956]
[1727628994245,0.65598722,65812.0,65811.0,0.082956]
[1727628994442,0.71047896,65812.0,65811.0,0.082956]
[1727628995936,0.5428,65812.0,65811.0,0.19563166]
[1727628996142,0.5428,65812.0,65811.0,0.3299347]
[1727628996337,0.5428,65812.0,65811.0,0.082956]
[1727628996542,0.5428,65812.0,65811.0,0.32993265]
[1727629000056,0.5428,65812.0,65811.0,0.32993687]
[1727629003356,0.48958861,65812.0,65811.0,0.32993687]
[1727629003554,0.3628,65812.0,65811.0,0.32993687]
[1727629003750,0.2918,65812.0,65811.0,1.53198171]
[1727629004054,0.08,65817.0,65816.0,0.07595]
[1727629004247,0.0804,65817.0,65816.0,0.26444545]
[1727629004451,0.0904,65817.0,65816.0,0.26444545]
[1727629005259,0.0104,65817.0,65816.0,0.15177165]
[1727629005557,0.0004,65817.0,65816.0,0.72307257]
[1727629006551,0.0004,65817.0,65816.0,0.72407257]
[1727629007555,0.0004,65817.0,65816.0,0.64407257]
[1727629008062,0.0004,65817.0,65816.0,0.18827257]
[1727629008249,0.0104,65817.0,65816.0,0.26399654]
[1727629008652,0.0104,65817.0,65816.0,0.18827257]
[1727629008853,0.0104,65817.0,65816.0,0.1794452]
[1727629009052,0.0104,65817.0,65816.0,0.29063196]
[1727629009257,0.0104,65817.0,65816.0,0.1794452]
[1727629009566,0.0104,65817.0,65816.0,0.1037201]
[1727629011061,0.12356358,65817.0,65816.0,0.07307835]
[1727629013467,0.12356358,65817.0,65816.0,0.04630825]
[1727629014266,0.56031258,65817.0,65816.0,0.001]
[1727629014570,0.075951,65816.0,65814.0,0.0035]
[1727629014760,0.19316358,65815.0,65814.0,0.079453]
[1727629014957,0.29316358,65815.0,65814.0,0.075953]
[1727629016158,0.29316358,65815.0,65814.0,0.076953]
[1727629016970,0.29416358,65815.0,65814.0,0.079953]
[1727629017772,0.65496358,65815.0,65814.0,0.079953]
[1727629019070,0.5418,65815.0,65814.0,0.1556781]
[1727629020280,0.5418,65815.0,65814.0,0.26737972]
[1727629020470,0.5418,65815.0,65814.0,0.1556781]
[1727629020967,0.5418,65815.0,65814.0,0.26738233]
[1727629021364,0.5418,65815.0,65814.0,0.19165723]
[1727629026073,0.65497786,65815.0,65814.0,0.079953]
[1727629028671,0.65497776,65815.0,65814.0,0.079953]
[1727629029775,0.57497776,65815.0,65814.0,0.079953]
[1727629030075,0.65497776,65815.0,65814.0,0.079953]
[1727629031777,0.29417776,65815.0,65814.0,0.079953]
[1727629031971,0.65497776,65815.0,65814.0,0.079953]
[1727629032872,0.79158599,65815.0,65814.0,0.079953]
[1727629033185,0.65497776,65815.0,65814.0,0.079953]
[1727629034071,0.50379211,65815.0,65814.0,0.1917736]
[1727629034670,0.50379211,65815.0,65814.0,0.1158206]
[1727629035071,0.57974411,65815.0,65814.0,0.1158206]
[1727629036078,0.21894411,65815.0,65814.0,0.1158206]
[1727629036269,0.57974411,65815.0,65814.0,0.1158206]
[1727629037078,0.50379211,65815.0,65814.0,0.1158206]
[1727629038273,0.50379211,65815.0,65814.0,0.11555151]
[1727629040977,0.61697117,65815.0,65814.0,0.004]
[1727629044589,0.25617117,65815.0,65814.0,0.004]
[1727629044786,0.61697117,65815.0,65814.0,0.004]
[1727629046984,0.69292317,65815.0,65814.0,0.004]
[1727629049181,0.57974411,65815.0,65814.0,0.11563638]
[1727629053192,0.57974411,65815.0,65814.0,0.11562191]
[1727629056186,0.57974411,65815.0,65814.0,0.004]
[1727629063489,0.49974411,65815.0,65814.0,0.004]
[1727629063987,0.57974411,65815.0,65814.0,0.004]
[1727629064182,0.57974411,65815.0,65814.0,0.0028325]
[1727629064183,0.89048932,65815.0,65814.0,0.0028325]
[1727629067595,0.74741272,65815.0,65814.0,0.0028325]
[1727629067794,0.69292434,65815.0,65814.0,0.0028325]
[1727629069893,0.61697234,65815.0,65810.0,0.0035]
[1727629070098,0.08,65812.0,65810.0,0.0035]
[1727629070285,0.11318023,65811.0,65810.0,0.0035]
[1727629070484,0.22318023,65811.0,65808.0,0.0272379]
[1727629070699,0.08,65809.0,65807.0,0.07596]
[1727629070891,0.11318023,65808.0,65807.0,0.07596]
[1727629071096,0.03678765,65808.0,65807.0,0.32086358]
[1727629072585,0.03678765,65808.0,65807.0,0.32005309]
[1727629072998,0.02978765,65808.0,65807.0,0.32005309]
[1727629073391,0.03078765,65808.0,65807.0,0.32005309]
[1727629073597,0.03178765,65808.0,65807.0,0.19231828]
[1727629077099,0.03178765,65808.0,65807.0,0.32499417]
[1727629077595,0.03178765,65808.0,65807.0,0.32494625]
[1727629078991,0.07377863,65809.0,65807.0,0.24898625]
[1727629079294,0.19318242,65808.0,65807.0,0.005]
[1727629079494,0.20318242,65808.0,65807.0,0.080961]
[1727629080099,0.20318242,65808.0,65807.0,0.076961]
[1727629081704,0.12418242,65808.0,65807.0,0.076961]
[1727629081904,0.20518242,65808.0,65807.0,0.078961]
[1727629086105,0.092,65808.0,65807.0,0.32290438]
[1727629090805,0.092,65808.0,65807.0,0.32352362]
[1727629094110,0.092,65808.0,65807.0,0.19053349]
[1727629101106,0.20517913,65808.0,65807.0,0.078961]
[1727629105727,0.20517867,65808.0,65807.0,0.078961]
[1727629109226,0.075958,65810.0,65807.0,0.4009035]
[1727629109430,0.105958,65810.0,65809.0,0.075959]
[1727629109730,0.105958,65810.0,65809.0,0.3198713]
[1727629110226,0.106958,65810.0,65809.0,0.3198713]
[1727629110727,0.106958,65810.0,65809.0,0.31904245]
[1727629111418,0.106958,65810.0,65809.0,0.32004245]
[1727629111618,0.107958,65810.0,65809.0,0.32004245]
[1727629112227,0.107958,65810.0,65809.0,0.32304245]
[1727629112719,0.032,65810.0,65809.0,0.32304245]
[1727629115618,0.032,65810.0,65809.0,0.32288388]
[1727629115823,0.032,65810.0,65809.0,0.42915645]
[1727629116020,0.032,65810.0,65809.0,0.32288388]
[1727629116230,0.14517641,65810.0,65809.0,0.079959]
[1727629117232,0.22113341,65810.0,65809.0,0.079959]
[1727629117436,0.14517641,65810.0,65809.0,0.079959]
[1727629117620,0.22113341,65810.0,65809.0,0.079959]
[1727629124350,0.107957,65810.0,65809.0,0.19079648]
[1727629125646,0.107957,65810.0,65809.0,0.19079539]
[1727629128853,0.032,65810.0,65809.0,0.19079539]
[1727629129852,0.112,65810.0,65809.0,0.19079539]
[1727629131355,0.112,65810.0,65809.0,0.079959]
[1727629131356,0.22517515,65810.0,65809.0,0.079959]
[1727629135453,0.2251757,65810.0,65809.0,0.079959]
[1727629139360,0.112,65810.0,65809.0,0.19082366]
[1727629143161,0.112,65810.0,65809.0,0.28191741]
[1727629144363,0.112,65810.0,65809.0,0.28192155]
[1727629148161,0.112,65810.0,65809.0,0.1908278]
[1727629148664,0.112,65810.0,65809.0,0.28192155]
[1727629149260,0.112,65810.0,65809.0,0.17105275]
[1727629149455,0.112,65810.0,65809.0,0.2819387]
[1727629149655,0.112,65810.0,65809.0,0.19084495]
[1727629149867,0.187957,65810.0,65809.0,0.2819387]
[1727629150068,0.187957,65810.0,65809.0,0.19084495]
[1727629154166,0.187957,65810.0,65809.0,0.19085317]
[1727629154474,0.187957,65810.0,65809.0,0.079959]
[1727629154475,0.30113335,65810.0,65809.0,0.079959]
[1727629156576,0.22517635,65810.0,65809.0,0.079959]
[1727629161378,0.112,65810.0,65809.0,0.19084802]
[1727629164078,0.112,65810.0,65809.0,0.19084553]
[1727629168379,0.22517628,65810.0,65809.0,0.079959]
[1727629169081,0.30113329,65810.0,65809.0,0.079959]
[1727629176384,0.187957,65810.0,65809.0,0.079959]
[1727629176585,0.187957,65810.0,65809.0,0.19089836]
[1727629178989,0.112,65810.0,65809.0,0.19089836]
[1727629179185,0.112,65810.0,65809.0,0.19097084]
[1727629188781,0.187957,65810.0,65809.0,0.19097084]
[1727629190387,0.107957,65810.0,65809.0,0.26693174]
[1727629191492,0.22113975,65810.0,65806.0,0.07778903]
[1727629191787,0.18914075,65809.0,65806.0,0.07778903]
[1727629191989,0.11318275,65808.0,65806.0,0.07778903]
[1727629192185,0.11318275,65807.0,65806.0,0.15375003]
[1727629192387,0.14318275,65807.0,65806.0,0.15025003]
[1727629192588,0.14318275,65807.0,65806.0,0.15225003]
[1727629192993,0.14318275,65807.0,65806.0,0.15525003]
[1727629193392,0.14418275,65807.0,65806.0,0.15525003]
[1727629194189,0.14518286,65807.0,65806.0,0.15425003]
[1727629195884,0.22114286,65807.0,65806.0,0.15425003]
[1727629196095,0.14518286,65807.0,65806.0,0.15425003]
[1727629198491,0.01673792,65808.0,65806.0,0.5836179]
[1727629198802,0.02,65808.0,65807.0,0.32056785]
[1727629199094,0.02,65808.0,65807.0,0.32058744]
[1727629199600,0.021,65808.0,65807.0,0.32058744]
[1727629200597,0.097959,65808.0,65807.0,0.32058744]
[1727629201497,0.022,65808.0,65807.0,0.32258744]
[1727629202496,0.022,65808.0,65807.0,0.32123362]
[1727629206496,0.13518214,65808.0,65807.0,0.07796]
[1727629207196,0.13518211,65808.0,65807.0,0.07796]
[1727629209395,0.05920343,65808.0,65807.0,0.07796]
[1727629209596,0.08854974,65808.0,65807.0,0.07796]
[1727629210007,0.13518171,65808.0,65807.0,0.07796]
[1727629211200,0.13518171,65808.0,65807.0,0.15796]
[1727629212597,0.23571642,65808.0,65807.0,0.19796]
[1727629212798,0.24513702,65808.0,65807.0,0.19796]
[1727629212999,0.35046661,65808.0,65807.0,1.25384]
[1727629213204,0.11518171,65808.0,65807.0,1.25384]
[1727629213714,0.15196156,65810.0,65809.0,0.075958]
[1727629213902,0.15196156,65810.0,65809.0,1.11592886]
[1727629215607,0.15296156,65810.0,65809.0,1.11792886]
[1727629215916,0.15396156,65810.0,65809.0,1.12092886]
[1727629216715,0.15396156,65810.0,65809.0,1.12061754]
[1727629217012,0.15396156,65810.0,65809.0,0.77094012]
[1727629217211,0.15396156,65810.0,65809.0,0.66473754]
[1727629217512,0.15396156,65810.0,65809.0,0.77092556]
[1727629217707,0.15396156,65810.0,65809.0,0.66473754]
[1727629221610,0.31267916,65810.0,65809.0,0.270958]
[1727629221814,0.34202187,65810.0,65809.0,0.270958]
[1727629222217,0.34202187,65810.0,65809.0,0.631758]
[1727629222418,0.06854158,65810.0,65809.0,0.631758]
[1727629228823,0.15189842,65818.0,65816.0,0.07595]
[1727629229024,0.15189842,65818.0,65816.0,0.18601513]
[1727629230126,0.15189842,65818.0,65816.0,0.18901513]
[1727629231317,0.15189842,65818.0,65816.0,0.19001513]
[1727629231511,0.15189842,65818.0,65816.0,0.18995717]
[1727629232424,0.0876,65817.0,65816.0,0.18995717]
[1727629232827,0.0876,65817.0,65816.0,0.32110525]
[1727629236219,0.0876,65817.0,65816.0,0.18995717]
[1727629236422,0.0876,65817.0,65816.0,0.3211869]
[1727629236625,0.137,65817.0,65816.0,0.07995]
[1727629237021,0.137,65817.0,65816.0,0.16792197]
[1727629237527,0.137,65817.0,65816.0,0.10724129]
[1727629240039,0.137,65817.0,65816.0,0.18724129]
[1727629243748,0.25016937,65817.0,65816.0,0.18724129]
[1727629246432,0.86191837,65817.0,65816.0,0.004]
[1727629246651,0.45584,65816.0,65810.0,0.0035]
[1727629246845,0.16716156,65811.0,65810.0,0.0035]
[1727629247157,0.33370404,65811.0,65810.0,0.075957]
[1727629247340,0.38033093,65811.0,65810.0,0.075957]
[1727629247646,0.21316937,65811.0,65810.0,0.075957]
[1727629248049,0.21416937,65811.0,65810.0,0.079957]
[1727629248746,0.21416937,65811.0,65810.0,0.078957]
[1727629248948,0.21516937,65811.0,65810.0,0.079957]
[1727629251738,0.06399294,65811.0,65810.0,0.19030878]
[1727629252146,0.06399294,65811.0,65810.0,0.32184425]
[1727629255754,0.06399294,65811.0,65810.0,0.32120638]
[1727629256952,0.002,65811.0,65810.0,0.32120638]
[1727629257142,0.012,65811.0,65810.0,0.32120638]
[1727629258657,0.438671,65815.0,65810.0,0.24524938]
[1727629258853,0.526751,65815.0,65814.0,0.16700806]
[1727629259065,0.526751,65815.0,65814.0,0.18601295]
[1727629259956,0.526751,65815.0,65814.0,0.11006095]
[1727629260548,0.526751,65815.0,65814.0,0.11306095]
[1727629261058,0.527751,65815.0,65814.0,0.11306095]
[1727629261353,1.127751,65815.0,65814.0,0.11306095]
[1727629261556,1.583591,65815.0,65814.0,0.11306095]
[1727629261761,0.983591,65815.0,65814.0,0.11506095]
[1727629264357,1.063591,65815.0,65814.0,0.11506095]
[1727629264859,0.607751,65815.0,65814.0,0.19101295]
[1727629265453,1.063591,65815.0,65814.0,0.19101295]